[Event "Titled Tuesday Blitz August 16 Late 2022"]
[White "Martinez Reyes, Pedro Ramon"]
[Black "Gomez Ledo, Roberto Carlos"]
[WhiteFideId "3901807"]
[BlackFideId "3507076"]
[WhiteElo "2327"]
[BlackElo "2379"]
[Result "0-1"]
[Round "05"]
[TimeControl "180+1"]
[Date "2022.08.16"]
[WhiteClock "0:00:04"]
[BlackClock "0:00:40"]

1. e4 {[%clk 0:03:00]}  d6 {[%clk 0:02:59]} 2. d4 {[%clk 0:03:00]}  Nf6 {[%clk 0:03:00]} 3. Nc3 {[%clk 0:02:59]}  e5 {[%clk 0:03:00]} 4. Nf3 {[%clk 0:02:54]}  Nbd7 {[%clk 0:02:59]} 5. g4 {[%clk 0:02:53]}  d5 {[%clk 0:02:56]} 6. dxe5 {[%clk 0:02:42]}  Nxe4 {[%clk 0:02:54]} 7. Qxd5 {[%clk 0:02:37]}  Nxc3 {[%clk 0:02:51]} 8. bxc3 {[%clk 0:02:38]}  c6 {[%clk 0:02:50]} 9. Qe4 {[%clk 0:02:28]}  Qa5 {[%clk 0:02:49]} 10. Bd2 {[%clk 0:02:24]}  Nc5 {[%clk 0:02:48]} 11. Qf4 {[%clk 0:02:19]}  Ne6 {[%clk 0:02:45]} 12. Qe4 {[%clk 0:02:16]}  Bc5 {[%clk 0:02:26]} 13. Bd3 {[%clk 0:02:11]}  Bd7 {[%clk 0:02:23]} 14. O-O {[%clk 0:02:07]}  O-O-O {[%clk 0:02:17]} 15. Rfb1 {[%clk 0:01:55]}  Bb6 {[%clk 0:01:45]} 16. c4 {[%clk 0:01:51]}  Qa4 {[%clk 0:01:40]} 17. Rb4 {[%clk 0:01:43]}  Qa3 {[%clk 0:01:38]} 18. Rb3 {[%clk 0:01:32]}  Qe7 {[%clk 0:01:37]} 19. Bb4 {[%clk 0:01:26]}  Bc5 {[%clk 0:01:34]} 20. a3 {[%clk 0:01:20]}  h5 {[%clk 0:01:29]} 21. h3 {[%clk 0:01:01]}  hxg4 {[%clk 0:01:28]} 22. hxg4 {[%clk 0:01:02]}  Rh3 {[%clk 0:01:26]} 23. Rab1 {[%clk 0:00:51]}  Rdh8 {[%clk 0:01:24]} 24. Be1 {[%clk 0:00:38]}  Rg3+ {[%clk 0:01:15]} 25. Kf1 {[%clk 0:00:32]}  Rh1+ {[%clk 0:01:14]} 26. Ke2 {[%clk 0:00:32]}  Rxf3 {[%clk 0:01:14]} 27. Kxf3 {[%clk 0:00:19]}  Ng5+ {[%clk 0:01:13]} 28. Kg2 {[%clk 0:00:20]}  Nxe4 {[%clk 0:01:11]} 29. Kxh1 {[%clk 0:00:20]}  Qh4+ {[%clk 0:01:10]} 30. Kg2 {[%clk 0:00:21]}  Nxf2 {[%clk 0:01:00]} 31. Be2 {[%clk 0:00:15]}  Qh1+ {[%clk 0:00:55]} 32. Kg3 {[%clk 0:00:11]}  Qg1+ {[%clk 0:00:53]} 33. Kf4 {[%clk 0:00:10]}  g5+ {[%clk 0:00:50]} 34. Kxg5 {[%clk 0:00:06]}  Nxg4 {[%clk 0:00:48]} 35. Rg3 {[%clk 0:00:05]}  Be3+ {[%clk 0:00:41]} 36. Rxe3 {[%clk 0:00:04]}  Qxe3+ {[%clk 0:00:40]} 0-1


[Site "https://www.chess.com"]

[Event "Titled Tuesday Blitz August 16 Late 2022"]
[White "Martinez, Shawn"]
[Black "Lorenzo De La Riva, Lazaro"]
[WhiteFideId "2039770"]
[BlackFideId "2268809"]
[WhiteElo "2174"]
[BlackElo "2325"]
[Result "1-0"]
[Round "05"]
[TimeControl "180+1"]
[Date "2022.08.18"]
[WhiteClock "0:00:00"]
[BlackClock "0:00:00"]

1. e4 {[%clk 0:00:00]}  e6 {[%clk 0:00:00]} 2. d4 {[%clk 0:00:00]}  d5 {[%clk 0:00:00]} 3. Bd3 {[%clk 0:00:00]}  dxe4 {[%clk 0:00:00]} 4. Bxe4 {[%clk 0:00:00]}  Nf6 {[%clk 0:00:00]} 5. Bf3 {[%clk 0:00:00]}  c5 {[%clk 0:00:00]} 6. Ne2 {[%clk 0:00:00]}  Nc6 {[%clk 0:00:00]} 7. Be3 {[%clk 0:00:00]}  cxd4 {[%clk 0:00:00]} 8. Nxd4 {[%clk 0:00:00]}  Ne5 {[%clk 0:00:00]} 9. O-O {[%clk 0:00:00]}  Nxf3+ {[%clk 0:00:00]} 10. Qxf3 {[%clk 0:00:00]}  Be7 {[%clk 0:00:00]} 11. Rd1 {[%clk 0:00:00]}  Qa5 {[%clk 0:00:00]} 12. Nc3 {[%clk 0:00:00]}  O-O {[%clk 0:00:00]} 13. a3 {[%clk 0:00:00]}  a6 {[%clk 0:00:00]} 14. h3 {[%clk 0:00:00]}  Qh5 {[%clk 0:00:00]} 15. Qg3 {[%clk 0:00:00]}  Bd7 {[%clk 0:00:00]} 16. Rd2 {[%clk 0:00:00]}  Rac8 {[%clk 0:00:00]} 17. Nde2 {[%clk 0:00:00]}  Qg6 {[%clk 0:00:00]} 18. Qe5 {[%clk 0:00:00]}  Bc6 {[%clk 0:00:00]} 19. Nf4 {[%clk 0:00:00]}  Qf5 {[%clk 0:00:00]} 20. Qxf5 {[%clk 0:00:00]}  exf5 {[%clk 0:00:00]} 21. Ncd5 {[%clk 0:00:00]}  Nxd5 {[%clk 0:00:00]} 22. Nxd5 {[%clk 0:00:00]}  Bxd5 {[%clk 0:00:00]} 23. Rxd5 {[%clk 0:00:00]}  Rxc2 {[%clk 0:00:00]} 24. b4 {[%clk 0:00:00]}  Bf6 {[%clk 0:00:00]} 25. Rad1 {[%clk 0:00:00]}  Ra2 {[%clk 0:00:00]} 26. R1d3 {[%clk 0:00:00]}  g6 {[%clk 0:00:00]} 27. Rd7 {[%clk 0:00:00]}  Bb2 {[%clk 0:00:00]} 28. Bh6 {[%clk 0:00:00]}  Re8 {[%clk 0:00:00]} 29. Rxb7 {[%clk 0:00:00]}  Be5 {[%clk 0:00:00]} 30. g4 {[%clk 0:00:00]}  fxg4 {[%clk 0:00:00]} 31. hxg4 {[%clk 0:00:00]}  Bg7 {[%clk 0:00:00]} 32. Be3 {[%clk 0:00:00]}  Be5 {[%clk 0:00:00]} 33. Kg2 {[%clk 0:00:00]}  Rc2 {[%clk 0:00:00]} 34. Rdd7 {[%clk 0:00:00]}  Rc6 {[%clk 0:00:00]} 35. Rxf7 {[%clk 0:00:00]}  h5 {[%clk 0:00:00]} 36. g5 {[%clk 0:00:00]}  Rce6 {[%clk 0:00:00]} 37. Rfd7 {[%clk 0:00:00]}  h4 {[%clk 0:00:00]} 38. Kh3 {[%clk 0:00:00]}  Bb2 {[%clk 0:00:00]} 39. a4 {[%clk 0:00:00]}  Bc3 {[%clk 0:00:00]} 40. b5 {[%clk 0:00:00]}  axb5 {[%clk 0:00:00]} 41. axb5 {[%clk 0:00:00]}  Re4 {[%clk 0:00:00]} 42. b6 {[%clk 0:00:00]}  Rf8 {[%clk 0:00:00]} 43. Rh7 {[%clk 0:00:00]}  Rf3+ {[%clk 0:00:00]} 44. Kh2 {[%clk 0:00:00]}  Rf8 {[%clk 0:00:00]} 45. Rhc7 {[%clk 0:00:00]}  Be5+ {[%clk 0:00:00]} 46. Kh3 {[%clk 0:00:00]}  Rf3+ {[%clk 0:00:00]} 47. Kg2 {[%clk 0:00:00]}  Bxc7 {[%clk 0:00:00]} 48. Kxf3 {[%clk 0:00:00]} 1-0


[Site "https://www.chess.com"]

[Event "Titled Tuesday Blitz August 16 Late 2022"]
[White "McBryde, Lamel"]
[Black "Bochnicka, Vladimir"]
[WhiteFideId "2058596"]
[BlackFideId "14943450"]
[WhiteElo "2136"]
[BlackElo "1939"]
[Result "0-1"]
[Round "05"]
[TimeControl "180+1"]
[Date "2022.08.18"]
[WhiteClock "0:00:00"]
[BlackClock "0:00:00"]

1. Nf3 {[%clk 0:00:00]}  c5 {[%clk 0:00:00]} 2. b3 {[%clk 0:00:00]}  Nc6 {[%clk 0:00:00]} 3. e3 {[%clk 0:00:00]}  d6 {[%clk 0:00:00]} 4. d4 {[%clk 0:00:00]}  cxd4 {[%clk 0:00:00]} 5. exd4 {[%clk 0:00:00]}  d5 {[%clk 0:00:00]} 6. Bb2 {[%clk 0:00:00]}  Nf6 {[%clk 0:00:00]} 7. a3 {[%clk 0:00:00]}  Bg4 {[%clk 0:00:00]} 8. Bd3 {[%clk 0:00:00]}  e6 {[%clk 0:00:00]} 9. Nbd2 {[%clk 0:00:00]}  Bd6 {[%clk 0:00:00]} 10. c4 {[%clk 0:00:00]}  O-O {[%clk 0:00:00]} 11. Qc2 {[%clk 0:00:00]}  Rc8 {[%clk 0:00:00]} 12. c5 {[%clk 0:00:00]}  Bb8 {[%clk 0:00:00]} 13. O-O {[%clk 0:00:00]}  Re8 {[%clk 0:00:00]} 14. Rfe1 {[%clk 0:00:00]}  a5 {[%clk 0:00:00]} 15. Bc3 {[%clk 0:00:00]}  Bh5 {[%clk 0:00:00]} 16. b4 {[%clk 0:00:00]}  Bg6 {[%clk 0:00:00]} 17. b5 {[%clk 0:00:00]}  Ne7 {[%clk 0:00:00]} 18. Ne5 {[%clk 0:00:00]}  Bxe5 {[%clk 0:00:00]} 19. Rxe5 {[%clk 0:00:00]}  Bxd3 {[%clk 0:00:00]} 20. Qxd3 {[%clk 0:00:00]}  Ng6 {[%clk 0:00:00]} 21. Ree1 {[%clk 0:00:00]}  Nh5 {[%clk 0:00:00]} 22. g3 {[%clk 0:00:00]}  Qg5 {[%clk 0:00:00]} 23. Kh1 {[%clk 0:00:00]}  Qg4 {[%clk 0:00:00]} 24. Qf3 {[%clk 0:00:00]}  Qg5 {[%clk 0:00:00]} 25. Bxa5 {[%clk 0:00:00]}  e5 {[%clk 0:00:00]} 26. Qxd5 {[%clk 0:00:00]}  Qf5 {[%clk 0:00:00]} 27. Qf3 {[%clk 0:00:00]}  Qh3 {[%clk 0:00:00]} 28. Bc3 {[%clk 0:00:00]}  e4 {[%clk 0:00:00]} 29. Qg2 {[%clk 0:00:00]}  Qg4 {[%clk 0:00:00]} 30. h3 {[%clk 0:00:00]}  Qe6 {[%clk 0:00:00]} 31. Re2 {[%clk 0:00:00]}  Nhf4 {[%clk 0:00:00]} 32. gxf4 {[%clk 0:00:00]}  Nxf4 {[%clk 0:00:00]} 33. Qg4 {[%clk 0:00:00]}  Qxg4 {[%clk 0:00:00]} 34. hxg4 {[%clk 0:00:00]}  Nxe2 {[%clk 0:00:00]} 35. Bb2 {[%clk 0:00:00]}  Rcd8 {[%clk 0:00:00]} 36. Nc4 {[%clk 0:00:00]}  Nxd4 {[%clk 0:00:00]} 37. Rd1 {[%clk 0:00:00]}  Nf3 {[%clk 0:00:00]} 38. Rxd8 {[%clk 0:00:00]}  Rxd8 {[%clk 0:00:00]} 39. Nd6 {[%clk 0:00:00]}  b6 {[%clk 0:00:00]} 40. Nb7 {[%clk 0:00:00]}  Rd1+ {[%clk 0:00:00]} 41. Kg2 {[%clk 0:00:00]}  h5 {[%clk 0:00:00]} 42. gxh5 {[%clk 0:00:00]}  g5 {[%clk 0:00:00]} 43. hxg6 {[%clk 0:00:00]}  fxg6 {[%clk 0:00:00]} 44. c6 {[%clk 0:00:00]}  g5 {[%clk 0:00:00]} 45. Kh3 {[%clk 0:00:00]}  Rg1 {[%clk 0:00:00]} 46. c7 {[%clk 0:00:00]}  g4# {[%clk 0:00:00]} 0-1


[Site "https://www.chess.com"]

[Event "Titled Tuesday Blitz August 16 Late 2022"]
[White "Melikhov, Evgeny V."]
[Black "Mcconnell, Sullivan"]
[WhiteFideId "4122046"]
[BlackFideId "30934885"]
[WhiteElo "1963"]
[BlackElo "2684"]
[Result "0-1"]
[Round "05"]
[TimeControl "180+1"]
[Date "2022.08.16"]
[WhiteClock "0:00:02"]
[BlackClock "0:00:25"]

1. d4 {[%clk 0:03:00]}  e6 {[%clk 0:02:58]} 2. c4 {[%clk 0:02:57]}  b6 {[%clk 0:02:58]} 3. Nc3 {[%clk 0:02:56]}  Bb4 {[%clk 0:02:53]} 4. e4 {[%clk 0:02:55]}  Bb7 {[%clk 0:02:53]} 5. e5 {[%clk 0:02:55]}  Bxc3+ {[%clk 0:02:52]} 6. bxc3 {[%clk 0:02:55]}  d6 {[%clk 0:02:52]} 7. Nf3 {[%clk 0:02:49]}  dxe5 {[%clk 0:02:52]} 8. Nxe5 {[%clk 0:02:45]}  Ne7 {[%clk 0:02:51]} 9. Bd3 {[%clk 0:02:41]}  Nbc6 {[%clk 0:02:51]} 10. Bf4 {[%clk 0:02:37]}  Nxe5 {[%clk 0:02:50]} 11. Bxe5 {[%clk 0:02:36]}  O-O {[%clk 0:02:16]} 12. O-O {[%clk 0:02:18]}  Ng6 {[%clk 0:02:16]} 13. Bg3 {[%clk 0:02:13]}  c5 {[%clk 0:02:15]} 14. Qg4 {[%clk 0:02:03]}  f5 {[%clk 0:02:07]} 15. Qe2 {[%clk 0:02:00]}  Re8 {[%clk 0:01:42]} 16. Rad1 {[%clk 0:01:49]}  Qg5 {[%clk 0:01:38]} 17. f4 {[%clk 0:01:33]}  Qf6 {[%clk 0:01:37]} 18. Qe3 {[%clk 0:01:16]}  Rac8 {[%clk 0:01:32]} 19. Rfe1 {[%clk 0:01:14]}  Nf8 {[%clk 0:01:31]} 20. Qe5 {[%clk 0:01:12]}  Qxe5 {[%clk 0:01:31]} 21. dxe5 {[%clk 0:01:03]}  Rcd8 {[%clk 0:01:30]} 22. Be2 {[%clk 0:00:56]}  Rd7 {[%clk 0:01:16]} 23. Rxd7 {[%clk 0:00:52]}  Nxd7 {[%clk 0:01:17]} 24. Rd1 {[%clk 0:00:52]}  Nb8 {[%clk 0:01:17]} 25. Kf2 {[%clk 0:00:44]}  Kf7 {[%clk 0:01:08]} 26. Rd6 {[%clk 0:00:27]}  Re7 {[%clk 0:01:01]} 27. Bh4 {[%clk 0:00:25]}  Rd7 {[%clk 0:01:01]} 28. Rxd7+ {[%clk 0:00:26]}  Nxd7 {[%clk 0:01:02]} 29. Bd8 {[%clk 0:00:26]}  Ke8 {[%clk 0:00:54]} 30. Bc7 {[%clk 0:00:25]}  Nf8 {[%clk 0:00:51]} 31. h3 {[%clk 0:00:20]}  Kd7 {[%clk 0:00:50]} 32. Bd6 {[%clk 0:00:20]}  Ng6 {[%clk 0:00:47]} 33. g3 {[%clk 0:00:20]}  Nh8 {[%clk 0:00:46]} 34. g4 {[%clk 0:00:16]}  g6 {[%clk 0:00:39]} 35. Kg3 {[%clk 0:00:13]}  Nf7 {[%clk 0:00:32]} 36. Bf8 {[%clk 0:00:12]}  Ke8 {[%clk 0:00:29]} 37. Bg7 {[%clk 0:00:12]}  Be4 {[%clk 0:00:28]} 38. h4 {[%clk 0:00:06]}  Nd8 {[%clk 0:00:26]} 39. h5 {[%clk 0:00:03]}  Kf7 {[%clk 0:00:26]} 40. Bf6 {[%clk 0:00:03]}  Nc6 {[%clk 0:00:26]} 41. h6 {[%clk 0:00:02]}  Na5 {[%clk 0:00:25]} 0-1


[Site "https://www.chess.com"]

[Event "Titled Tuesday Blitz August 16 Late 2022"]
[White "Mihajlov, Sebastian"]
[Black "Coelho, Ramyres Santana"]
[WhiteFideId "1512110"]
[BlackFideId "2120690"]
[WhiteElo "2464"]
[BlackElo "1888"]
[Result "1-0"]
[Round "05"]
[TimeControl "180+1"]
[Date "2022.08.18"]
[WhiteClock "0:00:00"]
[BlackClock "0:00:00"]

1. e4 {[%clk 0:00:00]}  c5 {[%clk 0:00:00]} 2. Nf3 {[%clk 0:00:00]}  d6 {[%clk 0:00:00]} 3. d4 {[%clk 0:00:00]}  cxd4 {[%clk 0:00:00]} 4. Nxd4 {[%clk 0:00:00]}  Nf6 {[%clk 0:00:00]} 5. Nc3 {[%clk 0:00:00]}  a6 {[%clk 0:00:00]} 6. Bc4 {[%clk 0:00:00]}  e6 {[%clk 0:00:00]} 7. O-O {[%clk 0:00:00]}  Be7 {[%clk 0:00:00]} 8. f4 {[%clk 0:00:00]}  O-O {[%clk 0:00:00]} 9. f5 {[%clk 0:00:00]}  e5 {[%clk 0:00:00]} 10. Nde2 {[%clk 0:00:00]}  b5 {[%clk 0:00:00]} 11. Bb3 {[%clk 0:00:00]}  Bb7 {[%clk 0:00:00]} 12. Ng3 {[%clk 0:00:00]}  Nbd7 {[%clk 0:00:00]} 13. Nd5 {[%clk 0:00:00]}  Nxd5 {[%clk 0:00:00]} 14. Bxd5 {[%clk 0:00:00]}  Bxd5 {[%clk 0:00:00]} 15. Qxd5 {[%clk 0:00:00]}  Nf6 {[%clk 0:00:00]} 16. Qd3 {[%clk 0:00:00]}  h6 {[%clk 0:00:00]} 17. Rd1 {[%clk 0:00:00]}  Rc8 {[%clk 0:00:00]} 18. a4 {[%clk 0:00:00]}  Qc7 {[%clk 0:00:00]} 19. c3 {[%clk 0:00:00]}  Qc6 {[%clk 0:00:00]} 20. axb5 {[%clk 0:00:00]}  axb5 {[%clk 0:00:00]} 21. Be3 {[%clk 0:00:00]}  Ng4 {[%clk 0:00:00]} 22. Kh1 {[%clk 0:00:00]}  Nxe3 {[%clk 0:00:00]} 23. Qxe3 {[%clk 0:00:00]}  Rfd8 {[%clk 0:00:00]} 24. Rd5 {[%clk 0:00:00]}  Ra8 {[%clk 0:00:00]} 25. Rad1 {[%clk 0:00:00]}  Ra2 {[%clk 0:00:00]} 26. Qe2 {[%clk 0:00:00]}  Bh4 {[%clk 0:00:00]} 27. Nh5 {[%clk 0:00:00]}  Qxc3 {[%clk 0:00:00]} 28. Qg4 {[%clk 0:00:00]} 1-0


[Site "https://www.chess.com"]

[Event "Titled Tuesday Blitz August 16 Late 2022"]
[White "Miszler, Levente"]
[Black "Karaev, Seit-Amet"]
[WhiteFideId "763276"]
[BlackFideId "4169549"]
[WhiteElo "1966"]
[BlackElo "2272"]
[Result "1-0"]
[Round "05"]
[TimeControl "180+1"]
[Date "2022.08.18"]
[WhiteClock "0:00:00"]
[BlackClock "0:00:00"]

1. Nf3 {[%clk 0:00:00]}  Nf6 {[%clk 0:00:00]} 2. c4 {[%clk 0:00:00]}  g6 {[%clk 0:00:00]} 3. g3 {[%clk 0:00:00]}  Bg7 {[%clk 0:00:00]} 4. Bg2 {[%clk 0:00:00]}  O-O {[%clk 0:00:00]} 5. O-O {[%clk 0:00:00]}  d6 {[%clk 0:00:00]} 6. Nc3 {[%clk 0:00:00]}  c5 {[%clk 0:00:00]} 7. d3 {[%clk 0:00:00]}  Nc6 {[%clk 0:00:00]} 8. a3 {[%clk 0:00:00]}  a5 {[%clk 0:00:00]} 9. Rb1 {[%clk 0:00:00]}  Rb8 {[%clk 0:00:00]} 10. Ne1 {[%clk 0:00:00]}  Bd7 {[%clk 0:00:00]} 11. Nc2 {[%clk 0:00:00]}  b6 {[%clk 0:00:00]} 12. b4 {[%clk 0:00:00]}  axb4 {[%clk 0:00:00]} 13. axb4 {[%clk 0:00:00]}  Nd4 {[%clk 0:00:00]} 14. e3 {[%clk 0:00:00]}  Nxc2 {[%clk 0:00:00]} 15. Qxc2 {[%clk 0:00:00]}  Qc7 {[%clk 0:00:00]} 16. Bd2 {[%clk 0:00:00]}  Bc6 {[%clk 0:00:00]} 17. bxc5 {[%clk 0:00:00]}  bxc5 {[%clk 0:00:00]} 18. Rxb8 {[%clk 0:00:00]}  Rxb8 {[%clk 0:00:00]} 19. Rb1 {[%clk 0:00:00]}  Bxg2 {[%clk 0:00:00]} 20. Kxg2 {[%clk 0:00:00]}  h5 {[%clk 0:00:00]} 21. e4 {[%clk 0:00:00]}  e6 {[%clk 0:00:00]} 22. Nb5 {[%clk 0:00:00]}  Qd7 {[%clk 0:00:00]} 23. Bc3 {[%clk 0:00:00]}  h4 {[%clk 0:00:00]} 24. Qb2 {[%clk 0:00:00]}  Ne8 {[%clk 0:00:00]} 25. Bxg7 {[%clk 0:00:00]}  Nxg7 {[%clk 0:00:00]} 26. Qf6 {[%clk 0:00:00]}  hxg3 {[%clk 0:00:00]} 27. hxg3 {[%clk 0:00:00]}  Nh5 {[%clk 0:00:00]} 28. Qc3 {[%clk 0:00:00]}  e5 {[%clk 0:00:00]} 29. Ra1 {[%clk 0:00:00]}  Qg4 {[%clk 0:00:00]} 30. Qd2 {[%clk 0:00:00]}  Nf4+ {[%clk 0:00:00]} 31. Kg1 {[%clk 0:00:00]}  Nh3+ {[%clk 0:00:00]} 32. Kg2 {[%clk 0:00:00]}  Ng5 {[%clk 0:00:00]} 33. Qe3 {[%clk 0:00:00]}  Qh3+ {[%clk 0:00:00]} 34. Kg1 {[%clk 0:00:00]}  Ne6 {[%clk 0:00:00]} 35. Nxd6 {[%clk 0:00:00]}  Nd4 {[%clk 0:00:00]} 36. Nb5 {[%clk 0:00:00]}  Nc2 {[%clk 0:00:00]} 37. Qc1 {[%clk 0:00:00]}  Nxa1 {[%clk 0:00:00]} 38. Qxa1 {[%clk 0:00:00]}  Qd7 {[%clk 0:00:00]} 39. Qxe5 {[%clk 0:00:00]}  Ra8 {[%clk 0:00:00]} 40. Qd5 {[%clk 0:00:00]}  Ra1+ {[%clk 0:00:00]} 41. Kg2 {[%clk 0:00:00]}  Qg4 {[%clk 0:00:00]} 42. Nd6 {[%clk 0:00:00]}  Qd7 {[%clk 0:00:00]} 43. Qxc5 {[%clk 0:00:00]}  Kh7 {[%clk 0:00:00]} 44. d4 {[%clk 0:00:00]}  Ra6 {[%clk 0:00:00]} 45. e5 {[%clk 0:00:00]}  Ra2 {[%clk 0:00:00]} 46. Qd5 {[%clk 0:00:00]}  Kg7 {[%clk 0:00:00]} 47. c5 {[%clk 0:00:00]}  Qg4 {[%clk 0:00:00]} 48. Qf3 {[%clk 0:00:00]}  Qe6 {[%clk 0:00:00]} 49. Qe4 {[%clk 0:00:00]}  Rb2 {[%clk 0:00:00]} 50. d5 {[%clk 0:00:00]}  Qd7 {[%clk 0:00:00]} 51. c6 {[%clk 0:00:00]}  Qa7 {[%clk 0:00:00]} 52. Qf4 {[%clk 0:00:00]}  Qa1 {[%clk 0:00:00]} 53. Qxf7+ {[%clk 0:00:00]}  Kh6 {[%clk 0:00:00]} 54. Qf4+ {[%clk 0:00:00]}  Kg7 {[%clk 0:00:00]} 55. Qf7+ {[%clk 0:00:00]}  Kh6 {[%clk 0:00:00]} 56. Qf8+ {[%clk 0:00:00]}  Kh7 {[%clk 0:00:00]} 57. Ne4 {[%clk 0:00:00]}  Qd1 {[%clk 0:00:00]} 58. Nf6# {[%clk 0:00:00]} 1-0


[Site "https://www.chess.com"]

[Event "Titled Tuesday Blitz August 16 Late 2022"]
[White "Moore, Alex"]
[Black "Ardila, Oscar Humberto"]
[WhiteFideId "30910692"]
[BlackFideId "4404742"]
[WhiteElo "1912"]
[BlackElo "1939"]
[Result "0-1"]
[Round "05"]
[TimeControl "180+1"]
[Date "2022.08.18"]
[WhiteClock "0:00:00"]
[BlackClock "0:00:00"]

1. d4 {[%clk 0:00:00]}  Nf6 {[%clk 0:00:00]} 2. c4 {[%clk 0:00:00]}  g6 {[%clk 0:00:00]} 3. Nc3 {[%clk 0:00:00]}  Bg7 {[%clk 0:00:00]} 4. e4 {[%clk 0:00:00]}  d6 {[%clk 0:00:00]} 5. Nf3 {[%clk 0:00:00]}  O-O {[%clk 0:00:00]} 6. Be2 {[%clk 0:00:00]}  Bg4 {[%clk 0:00:00]} 7. Ng1 {[%clk 0:00:00]}  Bxe2 {[%clk 0:00:00]} 8. Ngxe2 {[%clk 0:00:00]}  e5 {[%clk 0:00:00]} 9. d5 {[%clk 0:00:00]}  Nbd7 {[%clk 0:00:00]} 10. O-O {[%clk 0:00:00]}  Nc5 {[%clk 0:00:00]} 11. f3 {[%clk 0:00:00]}  a5 {[%clk 0:00:00]} 12. Be3 {[%clk 0:00:00]}  Qe7 {[%clk 0:00:00]} 13. b3 {[%clk 0:00:00]}  Nh5 {[%clk 0:00:00]} 14. a3 {[%clk 0:00:00]}  Nf4 {[%clk 0:00:00]} 15. g3 {[%clk 0:00:00]}  Nxe2+ {[%clk 0:00:00]} 16. Nxe2 {[%clk 0:00:00]}  f5 {[%clk 0:00:00]} 17. b4 {[%clk 0:00:00]}  Na6 {[%clk 0:00:00]} 18. Qb3 {[%clk 0:00:00]}  h5 {[%clk 0:00:00]} 19. c5 {[%clk 0:00:00]}  Kh7 {[%clk 0:00:00]} 20. Rac1 {[%clk 0:00:00]}  Bh6 {[%clk 0:00:00]} 21. Bxh6 {[%clk 0:00:00]}  Kxh6 {[%clk 0:00:00]} 22. cxd6 {[%clk 0:00:00]}  cxd6 {[%clk 0:00:00]} 23. exf5 {[%clk 0:00:00]}  gxf5 {[%clk 0:00:00]} 24. Qe3+ {[%clk 0:00:00]}  Kg6 {[%clk 0:00:00]} 25. Qb6 {[%clk 0:00:00]}  axb4 {[%clk 0:00:00]} 26. axb4 {[%clk 0:00:00]}  Rac8 {[%clk 0:00:00]} 27. Rxc8 {[%clk 0:00:00]}  Rxc8 {[%clk 0:00:00]} 28. Rc1 {[%clk 0:00:00]}  Rxc1+ {[%clk 0:00:00]} 29. Nxc1 {[%clk 0:00:00]}  e4 {[%clk 0:00:00]} 30. fxe4 {[%clk 0:00:00]}  fxe4 {[%clk 0:00:00]} 31. Ne2 {[%clk 0:00:00]}  e3 {[%clk 0:00:00]} 32. Nf4+ {[%clk 0:00:00]}  Kf5 {[%clk 0:00:00]} 33. Ne6 {[%clk 0:00:00]}  Qf6 {[%clk 0:00:00]} 34. Qxe3 {[%clk 0:00:00]}  Qa1+ {[%clk 0:00:00]} 35. Kg2 {[%clk 0:00:00]}  Qb2+ {[%clk 0:00:00]} 36. Kh3 {[%clk 0:00:00]}  Qe5 {[%clk 0:00:00]} 37. Qg5+ {[%clk 0:00:00]}  Ke4 {[%clk 0:00:00]} 38. Qxe5+ {[%clk 0:00:00]}  Kxe5 {[%clk 0:00:00]} 39. b5 {[%clk 0:00:00]}  Nb4 {[%clk 0:00:00]} 40. Ng7 {[%clk 0:00:00]}  Nxd5 {[%clk 0:00:00]} 41. Nxh5 {[%clk 0:00:00]}  Nc3 {[%clk 0:00:00]} 42. Nf4 {[%clk 0:00:00]}  Nxb5 {[%clk 0:00:00]} 43. Kg2 {[%clk 0:00:00]}  d5 {[%clk 0:00:00]} 44. h4 {[%clk 0:00:00]}  d4 {[%clk 0:00:00]} 45. h5 {[%clk 0:00:00]}  Nd6 {[%clk 0:00:00]} 46. Kf3 {[%clk 0:00:00]}  b5 {[%clk 0:00:00]} 47. g4 {[%clk 0:00:00]}  Nf7 {[%clk 0:00:00]} 48. Nd3+ {[%clk 0:00:00]}  Kd5 {[%clk 0:00:00]} 49. Kf4 {[%clk 0:00:00]}  Kc4 {[%clk 0:00:00]} 50. Ne5+ {[%clk 0:00:00]}  Nxe5 {[%clk 0:00:00]} 51. Kxe5 {[%clk 0:00:00]}  d3 {[%clk 0:00:00]} 52. h6 {[%clk 0:00:00]}  d2 {[%clk 0:00:00]} 53. h7 {[%clk 0:00:00]}  d1=Q {[%clk 0:00:00]} 54. h8=Q {[%clk 0:00:00]}  Qa1+ {[%clk 0:00:00]} 0-1


[Site "https://www.chess.com"]

[Event "Titled Tuesday Blitz August 16 Late 2022"]
[White "Nakamura, Hikaru"]
[Black "Hansen, Eric"]
[WhiteFideId "2016192"]
[BlackFideId "2606771"]
[WhiteElo "2850"]
[BlackElo "2568"]
[Result "1-0"]
[Round "05"]
[TimeControl "180+1"]
[Date "2022.08.16"]
[WhiteClock "0:00:03"]
[BlackClock "0:00:30"]

1. g3 {[%clk 0:02:55]}  d5 {[%clk 0:02:59]} 2. Bg2 {[%clk 0:02:54]}  Nf6 {[%clk 0:02:51]} 3. Nf3 {[%clk 0:02:47]}  g6 {[%clk 0:02:49]} 4. d3 {[%clk 0:02:47]}  Bg7 {[%clk 0:02:49]} 5. Bd2 {[%clk 0:02:47]}  Nc6 {[%clk 0:02:43]} 6. Qc1 {[%clk 0:02:47]}  e5 {[%clk 0:02:40]} 7. O-O {[%clk 0:02:39]}  O-O {[%clk 0:02:36]} 8. c4 {[%clk 0:02:39]}  e4 {[%clk 0:02:31]} 9. dxe4 {[%clk 0:02:35]}  dxe4 {[%clk 0:02:29]} 10. Ng5 {[%clk 0:02:22]}  Nd4 {[%clk 0:02:29]} 11. Nc3 {[%clk 0:02:21]}  Bg4 {[%clk 0:02:05]} 12. Re1 {[%clk 0:02:15]}  Re8 {[%clk 0:02:05]} 13. h3 {[%clk 0:01:54]}  Bd7 {[%clk 0:02:02]} 14. Ngxe4 {[%clk 0:01:27]}  Nxe4 {[%clk 0:02:02]} 15. Nxe4 {[%clk 0:01:27]}  Bxh3 {[%clk 0:01:49]} 16. Bxh3 {[%clk 0:01:06]}  Rxe4 {[%clk 0:01:48]} 17. Be3 {[%clk 0:01:06]}  Rxe3 {[%clk 0:01:42]} 18. fxe3 {[%clk 0:00:55]}  Nc6 {[%clk 0:01:34]} 19. e4 {[%clk 0:00:43]}  Qe7 {[%clk 0:01:24]} 20. Qf4 {[%clk 0:00:27]}  Bxb2 {[%clk 0:01:22]} 21. Rad1 {[%clk 0:00:27]}  Ne5 {[%clk 0:01:18]} 22. Kh2 {[%clk 0:00:19]}  c6 {[%clk 0:01:15]} 23. Rf1 {[%clk 0:00:19]}  Rf8 {[%clk 0:01:11]} 24. Qe3 {[%clk 0:00:17]}  a5 {[%clk 0:00:57]} 25. Qb3 {[%clk 0:00:15]}  Ba3 {[%clk 0:00:56]} 26. Qc2 {[%clk 0:00:10]}  Bc5 {[%clk 0:00:56]} 27. Kg2 {[%clk 0:00:10]}  h5 {[%clk 0:00:56]} 28. Qc3 {[%clk 0:00:10]}  b6 {[%clk 0:00:54]} 29. Kh2 {[%clk 0:00:10]}  Re8 {[%clk 0:00:51]} 30. Rf4 {[%clk 0:00:10]}  Qg5 {[%clk 0:00:51]} 31. Rdf1 {[%clk 0:00:08]}  Bd6 {[%clk 0:00:38]} 32. Qd4 {[%clk 0:00:06]}  Bc7 {[%clk 0:00:38]} 33. Kg2 {[%clk 0:00:04]}  h4 {[%clk 0:00:30]} 34. Rxh4 {[%clk 0:00:03]}  Nxc4 {[%clk 0:00:30]} 35. Qh8# {[%clk 0:00:03]} 1-0


[Site "https://www.chess.com"]